Cogmind - Beta 14 @@@ ROGUE MODE // 2025.03.27 @ 22:20:51 Player: GiggleBox Result: Destroyed by as-62988 with Assembled Heavy Rifle Performance ------------- Evolutions (0) 0 Regions Visited (2) 400 Robots Destroyed (15) 75 Value Destroyed (247) 247 Prototype IDs (1) 20 Alien Tech Used (0) 0 Bonus (25) 25 TOTAL SCORE: 767 Bonus ------- Follower Combat Kills 25 Cogmind --------- Core Integrity 0/250 Matter 272/300 Energy 100/100 System Corruption 1% Temperature Cool (20) Movement Core (350) Ox6 Location -10/Mines Parts ------- > --- POWER (1) -------- (None) > --- PROPULSION (2) --- (None) > --- UTILITY (2) ------ Large Storage Unit > --- WEAPON (2) ------- (None) > --- INVENTORY (15) --- Ion Engine Light Nuclear Core Aluminum Leg Aluminum Leg Aluminum Leg Improved Heat Sink Structural Scanner Seismic Detector Medium Laser Particle Gun Assault Rifle Assault Rifle Datajack Peak State ------------ > --- POWER ------------ Ion Engine > --- PROPULSION ------- Aluminum Leg Aluminum Leg > --- UTILITY ---------- Large Storage Unit Thief Drone Bay > --- WEAPON ----------- Assault Rifle Light Cannon > --- INVENTORY -------- Ion Engine Aluminum Leg Improved Heat Sink Structural Scanner Seismic Detector Medium Laser Assault Rifle Grenade Launcher Datajack [Rating: 14] Favorites ----------- Power Ion Engine Engine Ion Engine Propulsion Aluminum Leg Leg Aluminum Leg Utility Seismic Detector Device Seismic Detector Storage Small Storage Unit Weapon Assault Rifle Energy Gun Medium Laser Ballistic Gun Assault Rifle Ballistic Cannon Light Cannon Launcher Grenade Launcher Build | -11 -10 -10 ------- Run | Yrd Mat Min Slots Evolved . | . . . Power . | . . . Propulsion . | . . . Utility . | . . . Weapon . | . . . Parts Attached 10 | 2 4 4 Power . | . . . Engine . | . . . Core . | . . . Reactor . | . . . Propulsion 1 | . 1 . Treads . | . . . Leg 1 | . 1 . Wheel . | . . . Hover . | . . . Flight . | . . . Utility 3 | 1 1 1 Device 2 | 1 . 1 Storage 1 | . 1 . Processor . | . . . Hackware . | . . . Protection . | . . . Artifact . | . . . Weapon 6 | 1 2 3 Energy Gun 1 | . . 1 Energy Cannon . | . . . Ballistic Gun 2 | 1 1 . Ballistic Cannon 2 | . 1 1 Launcher 1 | . . 1 Special Weapon . | . . . Impact Weapon . | . . . Slashing Weapon . | . . . Piercing Weapon . | . . . Special Melee Weapon . | . . . Unidentified Prototypes 1 | . . 1 Parts Lost 6 | . . 6 Power 1 | . . 1 Propulsion 2 | . . 2 Utility 1 | . . 1 Weapon 2 | . . 2 Highest Loss Streak 6 | . . 6 To Critical Strikes . | . . . Average Slot Usage (%) 98 | . 100 96 Engine 13 | . 14 13 Leg 27 | . 28 26 Device 14 | . 14 14 Storage 14 | . 14 14 Ballistic Gun 16 | . 17 12 Ballistic Cannon 10 | . 10 12 Peak Build Rating 14 | 7 8 14 Average Rating 8 | 6 7 13 On Entrance 7 | 6 7 8 Naked Turns . | . . . Heaviest Build 35 | 14 31 35 Greatest Support 20 | 20 20 20 Greatest Overweight (x) 7 | . 1 7 Average Overweight (x) . | . . 1 Largest Inventory Capacity 15 | 8 15 15 Average Capacity 10 | 8 8 15 Most Carried 15 | 6 8 15 Average Carried 8 | 6 7 10 Final Capacity 15 | 8 15 15 Final Carried 13 | 6 8 13 Class Distribution -------------------- 100% | Mutant Dominant Class ---------------- Mutant | -10/Materials Mutant | -10/Mines Resources | -11 -10 -10 ----------- Run | Yrd Mat Min Matter Collected 482 | 228 180 74 Remotely . | . . . Salvage Created 373 | 16 308 49 Parts 33 | 3 29 1 Haulers Intercepted 2 | . 2 . Recyclers Shooed . | . . . Parts Field Recycled . | . . . Retrieved Matter . | . . . Parts Self-Destructed . | . . . Prevented . | . . . Kills | -11 -10 -10 ------- Run | Yrd Mat Min Combat Hostiles Destroyed 9 | . 8 1 Guns 9 | . 8 1 Classes Destroyed 6 | 1 5 . Tunneler 1 | 1 . . Hauler 2 | . 2 . Operator 2 | . 2 . Watcher 1 | . 1 . Swarmer 6 | . 6 . Grunt 3 | . 2 1 Best Kill Streak 5 | 1 5 1 Combat Bots Only 5 | . 5 1 Max Kills in Single Turn 2 | 1 2 1 Gunslinging 1 | . 1 . Exploded . | . . . Melee . | . . . Uniques/NPCs Destroyed . | . . . Combat | -11 -10 -10 -------- Run | Yrd Mat Min Hostile Shots Fired 64 | . 37 27 Missed 12 | . 10 2 Damage Taken 1050 | . 245 805 Core 251 | . 28 223 Absorbed by Shields . | . . . Core Remaining (%) 100 | 100 . . Volleys Fired 38 | 2 32 4 Largest 2 | 2 2 2 Hottest 65 | 40 55 65 Shots Fired 79 | 4 66 9 Gun 59 | 4 52 3 Cannon 18 | . 14 4 Launcher 2 | . . 2 Special . | . . . Kinetic 77 | 4 66 7 Thermal . | . . . Explosive 2 | . . 2 Electromagnetic . | . . . Robot Hit Streak 6 | 2 6 1 Robot Miss Streak 8 | 1 8 2 Penetration Max . | . . . Secondary Targets 3 | . 3 . Max Gunslinging Chain 1 | . 1 . Shots Hit Robots 39 | 2 34 3 Core Hits 22 | 1 18 3 Critical Kills . | . . . Critical Parts Destroyed 1 | . 1 . Critical Strikes 1 | . 1 . Destroy 1 | . 1 . Melee Attacks . | . . . Impact . | . . . Slashing . | . . . Piercing . | . . . Sneak Attacks . | . . . Combat Hostiles . | . . . Follow-up Attacks . | . . . Damage Inflicted 535 | 19 445 71 Guns 324 | 19 279 26 Cannons 194 | . 163 31 Explosions 14 | . . 14 Melee . | . . . Ramming 3 | . 3 . Kinetic 518 | 19 442 57 Thermal . | . . . Explosive 14 | . . 14 Electromagnetic . | . . . Impact . | . . . Slashing . | . . . Piercing . | . . . Highest Corruption 1 | . 1 1 Average Corruption 1 | . 1 1 Corruption Purged . | . . . Corruption Blocked . | . . . Effects 8 | . 4 4 Matter Fused 2 | . 1 1 Data Loss (minor) 1 | . . 1 Data Loss (major) 1 | . . 1 Misfires 3 | . 2 1 Alerts 1 | . 1 . Overload Shots . | . . . Overflow Damage . | . . . Projectiles . | . . . Explosions . | . . . Melee . | . . . Knockbacks 4 | . 4 . Impact . | . . . Kinetic 4 | . 4 . Secondary . | . . . Self-Inflicted Damage 16 | . . 16 Shots 1 | . . 1 Rammed . | . . . Targets Rammed 1 | . 1 . Kicked 1 | . 1 . Crushed . | . . . Highest Temperature 15 | . 15 12 Average Temperature 6 | . 7 5 Received Heat Transfer 117 | . 39 78 Siege Activations . | . . . Robots Corrupted . | . . . Combat Hostiles . | . . . Parts Fried . | . . . Impact Corruptions . | . . . Robots Melted . | . . . Combat Hostiles . | . . . Parts Melted . | . . . Heat Transferred . | . . . Parts Sabotaged . | . . . Parts Stolen . | . . . Parts Stripped . | . . . Power Chain Reactions . | . . . Alert | -11 -10 -10 ------- Run | Yrd Mat Min Peak Influence 174 | 5 168 174 Initial 12 | . 3 12 Average 48 | 2 38 78 Maximum Alert Level . | . . . Low Security (%) 100 | 100 100 100 Level 1 . | . . . Level 2 . | . . . Level 3 . | . . . Level 4 . | . . . Level 5 . | . . . High Security . | . . . Max Security . | . . . Squads Dispatched . | . . . Investigation . | . . . Extermination . | . . . Reinforcement . | . . . Assault . | . . . Garrison . | . . . Intercept . | . . . Searches Triggered . | . . . Construction Impeded . | . . . Haulers Reinforced . | . . . Active Scanning Responses . | . . . Cargo Convoy Interrupts . | . . . Stealth | -11 -10 -10 --------- Run | Yrd Mat Min Distress Signals . | . . . Communications Jammed . | . . . Distress Signals . | . . . Times Spotted 39 | . 15 24 Peak Tracking Total 13 | . 5 13 Tactical Retreats 4 | . . 4 Traps | -11 -10 -10 ------- Run | Yrd Mat Min Traps Triggered 1 | . 1 . Indirectly . | . . . Trap Hack Attempts . | . . . Triggered . | . . . Disarmed . | . . . Reprogrammed . | . . . Reused . | . . . Traps Extracted . | . . . Installed . | . . . Triggered . | . . . Machines | -11 -10 -10 ---------- Run | Yrd Mat Min Machines Disabled 1 | . 1 . Max in Single Turn 1 | . 1 . Machines Repaired . | . . . Machines Dismantled . | . . . Machines Sabotaged . | . . . Overloaded Fab Kills . | . . . Hacking | -11 -10 -10 --------- Run | Yrd Mat Min Machines Accessed 8 | . 7 1 Terminals 7 | . 7 . Fabricators . | . . . Repair Stations . | . . . Recycling Units . | . . . Scanalyzers . | . . . Garrison Access . | . . . Total Hacks 25 | . 24 1 Successful 12 | . 11 1 Failed 13 | . 13 . Catastrophic . | . . . Database Lockouts . | . . . Manual 20 | . 20 . Terminals 24 | . 24 . Fabricators . | . . . Repair Stations . | . . . Recycling Units . | . . . Scanalyzers . | . . . Garrison Access . | . . . Terminal Hacks 4 | . 3 1 Robot Analysis 1 | . 1 . Open Door 1 | . . 1 Branch Access Points 1 | . 1 . Terminal Index 1 | . 1 . Fabricator Hacks . | . . . Repair Station Hacks . | . . . Recycling Unit Hacks . | . . . Scanalyzer . | . . . Garrison Access Hacks . | . . . Unauthorized Hacks 8 | . 8 . Terminals 8 | . 8 . Botnet 3 | . 3 . Skim 5 | . 5 . Fabricators . | . . . Repair Stations . | . . . Recycling Units . | . . . Scanalyzers . | . . . Garrison Access . | . . . Data Cores Recovered 2 | . 2 . Used . | . . . Hacking Detections 7 | . 7 . Full Trace Events . | . . . Feedback Events . | . . . Feedback Blocked . | . . . Robot Schematics Acquired . | . . . Robots Built . | . . . Authchips . | . . . Time . | . . . Total Robot Build Rating . | . . . Part Schematics Acquired . | . . . Parts Built . | . . . Authchips . | . . . Time . | . . . Total Part Build Rating . | . . . Parts Repaired . | . . . Time . | . . . Parts Recycled . | . . . Recycled Matter . | . . . Retrieved Matter . | . . . Retrieved Components . | . . . Parts Scanalyzed . | . . . Part Schematics Acquired . | . . . Parts Damaged . | . . . Bothacking | -11 -10 -10 ------------ Run | Yrd Mat Min Used RIF Installer . | . . . Robots Hacked . | . . . Non-combat . | . . . Combat . | . . . Robot Hacks Applied . | . . . Relay Couplers Released . | . . . Fabnet Peak Effective % . | . . . Robots Rewired . | . . . Allies Hacked . | . . . Hacks Repelled . | . . . Allies | -11 -10 -10 -------- Run | Yrd Mat Min Total Allies . | . . . Largest Group . | . . . Highest-Rated Group . | . . . Highest-Rated Ally . | . . . Total Orders 10 | . . 10 EXPLORE 5 | . . 5 RETURN 5 | . . 5 Ally Attacks 38 | . . 38 Total Damage 202 | . . 202 Kills 5 | . . 5 Allies Corrupted 2 | . . 2 Allies Melted . | . . . Intel | -11 -10 -10 ------- Run | Yrd Mat Min Robot Analysis Total 1 | . 1 . Derelict Logs Recovered . | . . . Drone Launches 12 | . . 12 Drone Recoveries 9 | . . 9 Exploration | -11 -10 -10 ------------- Run | Yrd Mat Min Turns Passed 1451 | 24 1059 368 Spaces Moved 706 | 13 598 95 Core 2 | . . 2 Treads . | . . . Legs 704 | 13 598 93 Wheels . | . . . Hover . | . . . Flight . | . . . Fastest Speed 120 | 120 120 190 Average Speed 135 | 120 125 195 Slowest Speed 400 | 120 190 400 Overloaded Moves . | . . . Propulsion Burnouts . | . . . Robots Hopped . | . . . Cave-ins Triggered . | . . . Exploration Rate (%) 62 | 2 94 90 Regions Visited 2 Branch Regions 1 Pre-discovered Areas . | . . . Known Exits Taken 1 | . 1 . Unknown Exits Taken 1 | 1 . . Scrap Searched . | . . . Spaces Dug . | . . . Terrain Destroyed 13 | . . 13 Melee . | . . . Projectile . | . . . AOE 13 | . . 13 Terrain Rammed . | . . . Walls Destroyed . | . . . Machines Disabled . | . . . Actions | -11 -10 -10 --------- Run | Yrd Mat Min Total 1134 | 16 849 269 Wait 363 | . 200 163 Move 704 | 12 597 95 Hop . | . . . Pick Up 8 | . 7 1 Fast Attach 1 | 1 . . Attach 2 | . . 2 Detach 2 | . . 2 Swap 7 | 1 4 2 Drop 8 | . 8 . Fire 38 | 2 32 4 Melee . | . . . Ram . | . . . Kick 1 | . 1 . Crush . | . . . Escape Stasis . | . . . Rewire . | . . . Trap . | . . . Miscellaneous . | . . . Route ------- -11/Scrapyard -10/Materials (discovered 5 exits: *Mat x3 / *Min / Sub) -10/Mines (discovered 2 exits: *Mat x2) History --------- Turn | Location | Event 1 | -11/Scrapyard | Discovered new exit (range 3) 25 | -11/Scrapyard | Entered Materials 313 | -10/Materials | Build established: Mutant 358 | -10/Materials | Discovered new exit (range 12) 447 | -10/Materials | Identified exit to Mines 498 | -10/Materials | Identified exit to Materials 539 | -10/Materials | Identified exit to Subcaves 603 | -10/Materials | Learned 4 Subcaves zone layouts 648 | -10/Materials | Learned 4 Subcaves zone layouts 1084 | -10/Materials | Entered Mines 1089 | -10/Mines | Found the Drone Emporium 1098 | -10/Mines | Found Prototype Device 1099 | -10/Mines | Identified Thief Drone Bay 1327 | -10/Mines | Discovered exit to Materials (range 35) 1358 | -10/Mines | Discovered exit to Materials (range 38) 1396 | -10/Mines | Assembled infested the area 1442 | -10/Mines | Core integrity fell below 50% 1452 | -10/Mines | Destroyed by as-62988 with Assembled Heavy Rifle Last Messages --------------- 01421_ Thief Drone system terminally corrupted. 01422_ Thief Drone destroyed. 01426_ as-80700 destroyed. 01427_ Thief Drone system corrupted by crushing effect. 01428_ Thief Drone system terminally corrupted. 01431_ C-30 ARC bursts open, deploying its payload. 01431_ D-53 Grenadier unfolds itself. 01431_ R-06 Scavenger destroyed. 01435_ Grenade Launcher destroyed. 01435_ Ion Engine destroyed. 01437_ Lgt. Cannon destroyed. 01439_ The unstable cave ceiling collapses. 01439_ Aluminum Leg destroyed. 01439_ D-53 Grenadier destroyed. 01439_ as-21094 destroyed. 01444_ D-53 Grenadier destroyed. 01444_ Aluminum Leg destroyed. 01448_ The unstable cave ceiling collapses. 01448_ U-05 Engineer lays Concrete. 01452_ Thief Drone Bay destroyed. Map ----- +----------------------------------------------------+ | ???????????????????????######????####??????????# | | ??????????????????????##""""##??## ##??????????# | | ??????????????????????#" "#?## ##??????????# | | ??????????????????????#" "### #?????????## | | ??????????????????????## ### ##????????## | | ##????????????????????### ## ## #?????????# | | ##???????????????????# X ### ########### | | #???????????????????# ###?# ## | | #???????????????????# ##???#### ## | | #???????????????????## ##???????# ##=%## | | ##????????????????????### ##????????# ## ### | | ##??????????????????????# ##?????????# ## #?## | | ####????####???????????# ############%## #??### | | ##??## ##??????????# % %%%% #????? | | #?## ##?????????######### ####### ###??? | | ### #??????????????#### #?????# ##?? | | # ## #??????????????# a #????## ##? | | # #????????????####a####????# ## | | ## """ #?#####????#### ##?????# # | | ?# """ ### ##???# # ##????## | | ## """ ##?## #?????## | | #?# ##??????# | | ### #### #?????## | | #?## ## # #?????# | | ##??# u aa #????## " | | ## ###???## @ #???## | | ### ######?## a ##??## #### | | ##?# #??# a ####?### ##???# | | # ##??# #??## # ##??## ##?????# | | # #???###### #???# # ### #### ##???????# | | #!#????????# $#???#?####??## %% ##????????? | | #%#??????### #????????????## #?????????? | | # #?????## #?????????????# #?????????? | | #????## #?????????????# ##u$## ##??????#### | | #????# #??########???# ## ####??????? | | ###????# #### ##??# ## #????????#? | | ???????## ## ##?# ## #????????# | | ????????### #?# ## ####?????# """ | | ??????????## ### ## #?????# """ | | ???????????##### ###### ####### """ | | ??############### #????# #?? | | ??# #?# ######????##### #???? | | ??# """ #?## ##????????????# #?????# | | ### """ < #??##### ##???????????# #?????# | | """ #?????## ##??????????# #?????# | | ### #??#### ##????????## ####### | | ??# #?## """ ###??????# | | ??### #########?# """ ##?????# ##### | | ????# #?????????# """ #?????# ##???? | | ???? #?????????## ##????# ##????? | +----------------------------------------------------+ Best States ------------- Heat Dissipation 25 Energy Generation 10 Energy Capacity 250 Matter Stores 300 Matter Capacity 300 Sight Range 16 Terrain Scan Density 10 Evasion (%) 55 Item Schematics ----------------- None Robot Schematics ------------------ None Fabricated ------------ Nothing Alien Tech Used ----------------- None Achievements -------------- Slippery One Challenges ------------ None Game ------ Seed CentriumTimingStorage Manual? 0 Play Time 00:17:10 Cumulative 42.7 hours Start 2025.03.27 @ 22:06:29 End 2025.03.27 @ 22:20:51 Sessions 1 Manual Loads 0 Difficulty Rogue Special Mode None Game No. 52 Rogue 52 Adventurer 0 Explorer 0 Win Type - Total 0 Types 0/0/0/0/0/0/0/0/0 Lore% 12 Gallery% 32 Achievement% 26 Wizard Run 0 Options --------- Layout 0 ASCII 0 Keyboard 1 Movement Numpad Keybinds 0 Fullscreen 1 Font 24/Terminus Map View 76x50 Zoom Use 0% Tactical HUD 1 Map Filters NONE Filters NONE Steam 1 RUN: 2386916f-1d16-4a06-be14-8b725f50e68a